bitfinex-derivatives/quotes_ETHF0:USTF0_20251223
["timestamp","ask_amount","ask_price","bid_price","bid_amount"]
[1766499529618,3.57212,2940.5,2939.3,9.637]
[1766499529813,3.57212,2940.5,2939.4,9.637]
[1766499530002,3.57212,2940.5,2939.5,3.402]
[1766499530003,0.17014,2940.2,2939.5,3.402]
[1766499530508,3.57214,2940.2,2939.4,6.235]
[1766499530709,3.57214,2940.2,2939.5,3.402]
[1766499531315,3.57214,2940.2,2939.2,0.00510785]
[1766499531514,3.57214,2940.2,2939.4,6.235]
[1766499532712,3.57214,2940.2,2939.2,0.00510785]
[1766499533011,3.57214,2940.2,2939.3,3.406]
[1766499535116,0.17016,2939.9,2939.2,1e-08]
[1766499535416,3.402,2939.8,2939.2,1e-08]
[1766499536210,3.40710784,2939.8,2939.2,1e-08]
[1766499537233,3.402,2941.7,2939.3,17.625]
[1766499537421,0.17009,2941.0,2939.3,17.625]
[1766499538425,0.17009,2941.0,2939.4,3.64716894]
[1766499540323,0.17009,2941.0,2939.3,17.625]
[1766499541117,3.5721,2940.9,2939.2,1e-08]
[1766499541320,6.012,2940.8,2939.2,1e-08]
[1766499541527,6.012,2940.8,2939.2,3.40200001]
[1766499542226,0.17013,2940.3,2939.2,1e-08]
[1766499542420,3.402,2940.2,2939.2,1e-08]
[1766499542721,3.402,2940.2,2939.3,3.402]
[1766499542920,3.402,2940.2,2939.2,1e-08]
[1766499543121,0.17015,2940.0,2939.2,3.40200001]
[1766499543327,3.402,2939.9,2939.2,2.21470001]
[1766499544427,3.402,2939.9,2939.3,0.00510785]
[1766499544824,0.17012,2940.5,2939.3,0.00510785]
[1766499545123,3.402,2940.4,2939.3,0.00510785]
[1766499546023,0.17012,2940.5,2939.3,0.00510785]
[1766499546216,0.17012,2940.5,2939.3,8.51110785]
[1766499546417,3.402,2940.7,2939.3,8.51110785]
[1766499546818,3.402,2941.1,2939.3,8.51110785]
[1766499547017,3.402,2941.1,2939.4,3.70228274]
[1766499547321,3.402,2941.1,2939.5,9.64]
[1766499548223,0.17009,2941.0,2939.6,6.241]
[1766499548527,0.17009,2941.0,2939.7,7.224]
[1766499548730,0.17009,2941.0,2939.8,3.402]
[1766499550524,0.1701,2940.9,2939.3,0.00510785]
[1766499550725,3.5721,2940.8,2939.3,0.00510785]
[1766499551029,3.5721,2940.8,2939.4,5.221]
[1766499551231,0.17011,2940.6,2939.5,9.642]
[1766499551421,3.402,2940.5,2939.5,9.642]
[1766499551818,3.402,2940.5,2939.3,0.00510785]
[1766499552023,3.57212,2940.5,2939.4,3.406]
[1766499552237,3.57212,2940.5,2939.3,0.00510785]
[1766499552423,0.17013,2940.4,2939.4,3.402]
[1766499553133,0.17013,2940.4,2939.3,0.00510785]
[1766499553320,0.17013,2940.4,2939.4,3.402]
[1766499553526,0.17009,2941.0,2939.5,8.506]
[1766499553729,3.5721,2940.9,2939.3,0.00510785]
[1766499553922,0.17012,2940.6,2939.3,0.00510785]
[1766499554124,3.402,2940.5,2939.3,0.00510785]
[1766499554529,3.57212,2940.5,2939.3,0.00510785]
[1766499554925,3.57212,2940.5,2939.4,3.402]
[1766499555528,0.17012,2940.5,2939.4,3.402]
[1766499556128,3.402,2940.6,2939.4,3.402]
[1766499557426,3.402,2940.6,2939.3,0.00510785]
[1766499557632,3.402,2940.6,2939.4,3.402]
[1766499557833,3.402,2940.6,2939.5,6.239]
[1766499558728,0.1701,2940.8,2939.5,6.239]
[1766499561039,0.1701,2940.8,2939.3,0.00510785]
[1766499561232,0.17012,2940.6,2939.3,0.00510785]
[1766499561433,0.17012,2940.6,2939.4,11.919]
[1766499563146,9.202,2940.9,2939.4,11.919]
[1766499563743,3.402,2940.9,2939.3,0.00510785]
[1766499563938,3.5721,2940.9,2939.3,0.00510785]
[1766499564138,3.5721,2940.9,2939.4,12.012]
[1766499564337,0.1701,2940.8,2939.5,9.64]
[1766499565840,0.1701,2940.8,2939.6,9.64]
[1766499567046,0.1701,2940.8,2939.3,0.00510785]
[1766499567248,0.1701,2940.8,2939.7,6.237]
[1766499567453,0.1701,2940.8,2939.8,3.402]
[1766499567852,0.1701,2940.8,2939.3,0.00510785]
[1766499568255,0.1701,2940.8,2939.4,3.506]
[1766499570955,0.1701,2940.8,2939.3,0.00510785]
[1766499571252,0.1701,2940.8,2939.4,3.504]
[1766499572450,0.17011,2940.6,2939.5,3.402]
[1766499572656,3.402,2940.5,2939.5,8.486]
[1766499575150,3.402,2940.5,2939.3,0.00510785]
[1766499575347,0.17013,2940.4,2939.3,0.00510785]
[1766499575556,0.17013,2940.4,2939.4,3.867]
[1766499578756,3.402,2940.5,2939.3,0.00510785]
[1766499579050,0.17016,2939.8,2938.9,3.402]
[1766499579257,3.402,2939.7,2938.9,3.402]
[1766499579460,3.57217,2939.7,2938.9,3.402]
[1766499579958,3.57217,2939.7,2939.0,0.00510785]
[1766499582759,3.57217,2939.7,2939.1,3.402]
[1766499584152,3.402,2940.0,2939.1,3.402]
[1766499585262,0.00510002,2940.2,2939.1,3.402]
[1766499585658,3.57211,2940.7,2939.1,11.909]
[1766499589551,0.17011,2940.7,2939.1,11.909]
[1766499590265,3.402,2941.0,2939.2,3.56681994]
[1766499590568,3.402,2941.0,2939.3,6.236]
[1766499590768,3.402,2941.0,2939.4,3.402]
[1766499591061,3.402,2941.0,2939.4,7.02965439]
[1766499591862,3.402,2941.0,2939.4,3.62765439]
[1766499592057,3.402,2941.0,2939.5,18.148]
[1766499592854,3.402,2941.0,2939.2,34.19619]
[1766499592855,0.1701,2940.9,2939.6,6.241]
[1766499593159,8.6761,2940.8,2939.0,0.00510785]
[1766499593367,3.402,2940.7,2939.1,3.505]
[1766499593667,44.202,2940.7,2939.1,3.505]
[1766499596069,44.202,2940.7,2939.0,0.00510785]
[1766499596269,44.202,2940.7,2939.2,6.241]
[1766499597973,6.024,2940.6,2939.2,6.241]
[1766499598172,9.426,2940.6,2939.2,6.241]
[1766499599477,3.402,2940.7,2939.2,6.241]
[1766499601076,40.8,2941.2,2939.2,6.241]
[1766499601277,9.43,2941.1,2939.2,6.241]
[1766499601479,6.029,2941.1,2939.3,3.77636177]
[1766499601681,0.1701,2940.9,2939.4,5.74]
[1766499601878,40.8,2940.8,2939.4,5.74]
[1766499602181,9.431,2940.7,2939.0,0.00510785]
[1766499602473,9.431,2940.7,2939.1,3.402]
[1766499602681,9.431,2940.7,2939.0,0.00510785]
[1766499602870,9.431,2940.7,2939.2,3.402]
[1766499603566,0.17012,2940.6,2939.2,3.402]
[1766499603766,8.506,2940.5,2939.2,3.402]
[1766499603976,3.402,2940.4,2939.2,3.402]
[1766499604179,6.033,2940.3,2939.2,3.402]
[1766499604673,6.033,2940.3,2939.0,0.00510785]
[1766499605080,6.033,2940.3,2939.1,3.437]
[1766499606581,6.033,2940.3,2939.0,0.00510785]
[1766499606879,6.033,2940.3,2939.1,3.437]
[1766499608373,6.033,2940.3,2939.1,4.751]
[1766499608676,6.033,2940.3,2939.2,3.402]
[1766499609179,0.17016,2939.9,2939.0,0.00510785]
[1766499609374,9.435,2939.8,2939.0,0.00510785]
[1766499610977,3.402,2939.9,2939.1,3.402]
[1766499611772,6.033,2940.1,2939.1,3.402]
[1766499612369,0.17013,2940.4,2939.1,3.402]
[1766499612570,3.402,2940.6,2939.1,3.402]
[1766499612776,3.402,2940.7,2939.1,3.402]
[1766499612977,3.402,2940.6,2939.1,3.402]
[1766499613377,3.402,2940.6,2939.2,18.147]
[1766499614277,50.40609,2941.0,2939.2,18.147]
[1766499614681,9.60609,2941.0,2939.2,18.147]
[1766499616683,0.17009,2941.0,2939.2,18.147]
[1766499616875,3.402,2941.0,2939.3,0.17019]
[1766499617075,3.402,2941.0,2939.3,3.89193748]
[1766499617983,3.402,2941.0,2939.4,0.17018]
[1766499618176,3.402,2941.0,2939.5,3.57218]
[1766499618978,3.57209,2941.0,2939.0,0.00510785]
[1766499619181,3.57209,2941.0,2939.1,13.78]
[1766499621780,3.57209,2941.0,2939.1,13.9502]
[1766499621987,3.402,2941.0,2939.3,0.17019]
[1766499622183,3.402,2941.0,2939.4,3.402]
[1766499622783,3.402,2941.0,2939.3,0.17019]
[1766499622986,3.402,2941.0,2939.4,3.505]
[1766499623878,3.402,2941.0,2939.5,9.641]
[1766499624081,3.402,2941.0,2939.6,6.239]
[1766499624285,3.402,2941.0,2939.7,3.402]
[1766499624480,3.402,2941.0,2939.5,3.402]
[1766499624688,3.402,2941.0,2939.0,8.51010785]
[1766499624689,0.17013,2940.4,2939.0,0.00510785]
[1766499624887,17.489,2940.3,2939.0,0.00510785]
[1766499625292,40.8,2940.2,2939.0,0.00510785]
[1766499629489,40.97014,2940.2,2939.0,0.00510785]
[1766499629889,40.8,2940.2,2939.0,0.00510785]
[1766499630597,0.17011,2940.7,2939.1,3.402]
[1766499630797,3.502,2940.6,2939.1,3.402]
[1766499631198,40.8,2940.5,2939.1,3.402]
[1766499632297,9.464,2940.4,2939.2,2.011]
[1766499634789,0.00316313,2941.3,2939.0,0.00510785]
[1766499634994,6.062,2941.0,2939.1,11.936]
[1766499635193,6.062,2941.0,2939.2,18.145]
[1766499635994,3.402,2940.9,2939.3,9.64]
[1766499636394,3.5721,2940.9,2939.3,9.64]
[1766499640714,40.8,2940.8,2939.3,9.64]
[1766499640915,5.685,2940.7,2939.3,9.64]
[1766499641110,3.402,2940.6,2939.3,9.64]
[1766499641804,3.402,2940.6,2939.2,3.402]
[1766499641805,0.17012,2940.5,2939.2,3.402]
[1766499642005,6.23713,2940.4,2939.0,0.00510785]
[1766499642211,3.402,2940.3,2939.1,3.402]
[1766499642410,3.57213,2940.3,2939.1,3.402]
[1766499642817,0.17014,2940.2,2939.1,3.402]
[1766499643618,0.17014,2940.2,2939.0,3.40710785]
[1766499648619,0.17014,2940.2,2939.0,0.00510785]
[1766499648815,0.17014,2940.2,2939.1,3.402]
[1766499649914,9.47,2940.1,2939.1,3.402]
[1766499650715,9.47,2940.1,2939.0,0.00510785]
[1766499651019,9.64015,2940.1,2939.0,0.00510785]
[1766499654124,0.17015,2940.0,2939.0,0.00510785]
[1766499656917,0.17019,2939.4,2938.3,3.403]
[1766499657110,9.47,2939.3,2937.9,0.00379113]
[1766499657312,9.47,2939.3,2938.0,3.403]
[1766499657715,0.00510785,2938.9,2938.4,0.00510785]
[1766499657917,3.403,2938.8,2938.4,0.00510785]
[1766499659225,9.47,2938.8,2937.9,0.00379113]
[1766499660420,9.47,2938.8,2938.1,0.00510785]
[1766499662629,9.47,2938.8,2938.1,3.40810785]
[1766499662930,0.00874693,2938.9,2938.1,3.40810785]
[1766499663337,3.403,2939.5,2938.2,5.633]
[1766499663529,3.403,2939.4,2938.2,5.633]
[1766499663925,6.067,2939.6,2938.2,5.633]
[1766499664328,6.07031836,2939.6,2938.2,5.633]
[1766499664636,0.00331836,2939.6,2938.2,5.633]
[1766499664935,3.40631836,2939.6,2938.2,5.633]
[1766499666625,0.00331836,2939.6,2938.2,5.80325]
[1766499666833,3.403,2939.9,2938.3,3.82553338]
[1766499667028,3.403,2940.1,2938.4,3.403]
[1766499667338,3.403,2940.1,2938.6,0.17023]
[1766499667527,0.17008,2941.3,2938.7,3.403]
[1766499667727,17.979,2941.2,2939.7,0.00510785]
[1766499667928,17.98177496,2941.2,2939.7,3.40810785]
[1766499668126,40.8,2941.1,2939.7,3.40810785]
[1766499668331,9.472,2941.0,2939.7,3.40810785]
[1766499669439,9.64209,2941.0,2939.7,3.40810785]
[1766499670831,9.472,2941.0,2939.7,3.40810785]
[1766499671036,9.472,2940.9,2939.7,3.40810785]
[1766499674144,0.17012,2940.6,2939.8,3.402]
[1766499674343,3.402,2940.5,2939.7,0.00510785]
[1766499674642,6.068,2940.4,2939.7,0.00510785]
[1766499674843,6.068,2940.4,2939.7,7.85e-06]
[1766499675742,0.00510784,2940.3,2939.7,7.85e-06]
[1766499678047,0.00510784,2940.3,2939.7,3.40200785]
[1766499678745,0.17285496,2941.2,2939.7,3.40200785]
[1766499678945,7.944,2941.1,2939.7,3.40200785]
[1766499679751,0.00277496,2941.2,2939.7,3.40200785]
[1766499679944,3.402,2941.1,2939.7,3.40200785]
[1766499680147,3.402,2941.1,2939.8,6.188]
[1766499681251,0.00277496,2941.2,2939.8,6.188]
[1766499681844,0.00277496,2941.2,2939.7,7.85e-06]
[1766499681845,3.402,2941.1,2939.7,7.85e-06]
[1766499682045,3.402,2941.1,2939.8,3.402]
[1766499684249,3.402,2941.1,2939.7,7.85e-06]
[1766499684456,3.402,2941.1,2939.8,3.402]
[1766499685249,9.472,2941.0,2939.8,3.402]
[1766499685445,0.17285496,2941.2,2939.8,3.402]
[1766499685755,3.402,2941.1,2939.8,3.402]
[1766499687051,0.00277496,2941.2,2939.8,3.402]
[1766499688559,0.00277496,2941.2,2939.9,0.17015]
[1766499688857,0.00277496,2941.2,2940.0,8.505]
[1766499689150,0.00277496,2941.2,2940.1,4.973]
[1766499689355,0.00277496,2941.2,2940.0,0.00343254]
[1766499689550,3.402,2941.1,2940.0,0.00343254]
[1766499689753,3.402,2941.1,2940.1,3.402]
[1766499691054,3.402,2941.0,2940.1,3.402]
[1766499692561,3.402,2940.9,2940.1,3.402]
[1766499693854,0.00277496,2941.2,2940.1,3.402]
[1766499695861,0.00277496,2941.2,2940.0,0.00343254]
[1766499696060,0.00277496,2941.2,2940.1,9.532]
[1766499697763,3.401,2941.6,2940.1,9.532]
[1766499698762,3.40465038,2941.6,2940.1,9.532]
[1766499700662,3.40465038,2941.6,2940.0,0.00343254]
[1766499700860,3.40465038,2941.6,2940.1,11.905]
[1766499701066,3.40465038,2941.6,2940.2,1.621]
[1766499701259,0.00365038,2941.6,2940.2,1.621]
[1766499703466,0.00365038,2941.6,2940.3,0.17013]
[1766499703666,0.00365038,2941.6,2940.4,3.57112]
[1766499703866,3.401,2941.8,2940.4,3.57112]
[1766499704269,3.401,2941.8,2940.4,3.401]
[1766499704871,3.40521289,2941.8,2940.4,3.401]
[1766499705363,3.40521289,2941.8,2940.4,3.57112]
[1766499707476,3.40521289,2941.8,2940.0,0.00343254]
[1766499707672,5.582,2941.7,2940.1,12.164]
[1766499707872,5.582,2941.7,2940.0,8.50643254]
[1766499708081,5.582,2941.7,2940.2,9.625]
[1766499708582,5.582,2941.7,2940.0,0.00343254]
[1766499708881,4.582,2941.7,2940.1,9.625]
[1766499709779,4.582,2941.7,2940.0,0.00343254]
[1766499709984,8.503,2941.6,2940.1,3.401]
[1766499710281,3.401,2941.5,2940.1,3.401]
[1766499711082,3.401,2941.5,2940.0,0.00343254]
[1766499711281,3.401,2941.5,2940.1,3.401]
[1766499712386,0.17006,2941.6,2940.1,3.401]
[1766499712580,3.503,2941.5,2940.1,3.401]
[1766499714590,0.00421289,2941.8,2940.1,3.401]
[1766499714788,3.401,2941.7,2940.1,3.401]
[1766499715086,9.23,2941.7,2940.1,3.401]
[1766499718599,9.23,2941.7,2940.2,9.171]
[1766499720196,0.00421289,2941.8,2940.2,9.171]
[1766499720496,9.475,2941.7,2940.2,9.171]
[1766499721897,9.475,2941.7,2940.0,0.17358254]
[1766499722098,9.475,2941.7,2940.1,5.29]
[1766499722797,9.475,2941.7,2940.0,0.17358254]
[1766499723096,9.475,2941.7,2940.1,9.622]
[1766499724096,9.475,2941.7,2940.2,9.622]
[1766499725387,9.475,2941.7,2940.0,0.17358254]
[1766499725588,9.475,2941.7,2940.1,18.125]
[1766499726498,9.475,2941.7,2940.2,9.622]
[1766499728189,9.475,2941.7,2940.3,9.622]
[1766499742119,0.00421289,2941.8,2940.7,0.17011]
[1766499742414,0.00421289,2941.8,2940.8,9.62]
[1766499742807,0.00421289,2941.8,2940.9,6.219]
[1766499743009,0.00421289,2941.8,2941.0,3.401]
[1766499745819,0.00421289,2941.8,2941.1,6.218]
[1766499746121,0.00421289,2941.8,2941.2,6.218]
[1766499746421,0.00421289,2941.8,2941.2,3.40610785]
[1766499746614,0.00421289,2941.8,2941.2,0.00510785]
[1766499746815,0.00421289,2941.8,2941.2,3.40610785]
[1766499748725,3.40521289,2941.8,2941.2,3.40610785]
[1766499749412,0.00421289,2941.8,2941.2,3.40610785]
[1766499749616,3.401,2942.4,2941.2,3.40610785]
[1766499750621,3.40375944,2942.4,2941.2,3.40610785]
[1766499751215,3.40375944,2942.4,2941.2,0.00510785]
[1766499751413,3.40375944,2942.4,2941.3,3.435]
[1766499751622,3.40375944,2942.4,2941.4,9.617]
[1766499752418,3.40375944,2942.4,2941.5,9.617]
[1766499753118,3.40375944,2942.4,2941.5,3.4]
[1766499754720,3.40375944,2942.4,2941.2,3.40510785]
[1766499754922,0.17002,2942.3,2940.7,3.4]
[1766499755115,8.501,2942.2,2940.8,3.4]
[1766499755318,8.237,2942.1,2940.8,3.4]
[1766499755814,0.00507747,2941.7,2941.2,0.00509875]
[1766499756014,3.4,2941.6,2940.8,3.4]
[1766499756622,3.4,2941.6,2940.0,1.47505513]
[1766499756929,3.4,2941.6,2940.1,14.253]
[1766499757128,3.4,2941.6,2940.5,0.00509875]
[1766499757630,3.4,2941.6,2940.6,3.4]
[1766499760328,3.40507747,2941.7,2940.6,3.4]
[1766499765230,3.40507747,2941.7,2940.5,0.00509875]
[1766499765433,3.40507747,2941.7,2940.6,4.001]
[1766499766546,3.40507747,2941.7,2940.6,5.577]
[1766499766739,3.40507747,2941.7,2940.7,3.4]
[1766499768547,3.40507747,2941.7,2940.5,0.00509875]
[1766499768753,3.40507747,2941.7,2940.6,9.614]
[1766499770749,0.00507747,2941.7,2940.6,9.78411]
[1766499770942,3.4,2942.2,2940.7,0.1701]
[1766499771447,3.4,2942.2,2940.8,3.976]
[1766499772440,3.4,2942.2,2940.7,0.1701]
[1766499772637,3.4,2942.2,2940.8,18.115]
[1766499773048,3.4,2942.2,2940.8,18.2851]
[1766499773251,3.4,2942.5,2940.9,18.28609]
[1766499773444,3.4,2942.5,2941.0,3.57009]
[1766499780563,3.4,2942.5,2941.0,0.17009]
[1766499780856,0.17002,2942.3,2940.8,3.4]
[1766499781052,17.974,2942.2,2940.8,3.4]
[1766499781257,0.17003,2942.1,2940.8,3.4]
[1766499781657,0.17003,2942.1,2940.5,0.00509875]
[1766499781857,0.17003,2942.1,2940.6,5.448]
[1766499783362,17.974,2942.2,2940.6,5.448]
[1766499783755,0.16999,2942.7,2940.6,5.448]
[1766499784061,3.4,2942.3,2940.6,5.61811]
[1766499784355,3.4,2942.3,2940.8,0.1701]
[1766499784550,3.4,2942.3,2940.9,11.901]
[1766499784952,3.4,2942.3,2940.8,0.1701]
[1766499785352,3.4,2942.3,2940.9,13.786]
[1766499785761,3.4,2942.3,2941.0,9.625]
[1766499785960,3.4,2942.3,2941.1,9.625]
[1766499786148,3.4,2942.3,2941.2,6.225]
[1766499786354,3.4,2942.3,2941.3,3.4]
[1766499788263,3.4,2942.7,2941.3,3.4]
[1766499789164,3.40308879,2942.7,2941.3,3.4]
[1766499789560,3.40308879,2942.7,2941.4,9.624]
[1766499790261,3.40308879,2942.7,2941.1,0.17008]
[1766499790457,0.17001,2942.4,2940.0,0.00343254]
[1766499790663,17.543,2942.3,2940.7,3.4]
[1766499791660,14.577,2942.2,2940.7,3.4]
[1766499791859,17.977,2942.2,2940.7,3.4]
[1766499792061,17.977,2942.2,2940.8,6.261]
[1766499793558,17.977,2942.2,2940.1,0.17014]
[1766499793767,17.977,2942.2,2940.6,9.623]
[1766499794070,40.8,2942.1,2940.7,9.623]
[1766499801264,9.497,2942.0,2940.7,9.623]
[1766499801463,0.17002,2942.3,2940.7,9.623]
[1766499801767,9.498,2942.5,2940.7,9.623]
[1766499804768,0.00308879,2942.7,2941.0,0.17009]
[1766499804973,0.00308879,2942.7,2940.8,3.88431134]
[1766499804974,0.00308879,2942.7,2941.1,12.07108]
[1766499805175,0.00308879,2942.7,2941.3,2.06274092]
[1766499805376,0.00308879,2942.7,2941.4,3.4]
[1766499809374,3.4,2942.9,2941.7,2.06274092]
[1766499809679,3.4,2943.5,2942.0,0.00509875]
[1766499809979,40.8,2943.4,2942.0,0.00509875]
[1766499810186,5.778,2943.3,2941.6,3.4]
[1766499810380,3.4,2943.2,2941.7,3.4]
[1766499811182,0.00509875,2942.7,2942.2,0.00509875]
[1766499811383,9.505,2942.6,2942.2,0.00923782]
[1766499813482,9.505,2942.6,2941.7,3.4]
[1766499814486,9.505,2942.6,2941.9,0.00509875]
[1766499815182,0.00509875,2942.7,2941.9,0.00509875]
[1766499815378,0.00509875,2942.7,2942.0,3.4]
[1766499816184,0.00509875,2942.7,2942.0,7.525]
[1766499816376,3.4,2943.1,2942.0,7.525]
[1766499817286,0.00509875,2942.8,2942.0,7.525]
[1766499817495,0.00509875,2942.8,2942.1,9.618]
[1766499817695,0.00509875,2942.8,2941.9,0.00509875]
[1766499817892,0.00509875,2942.8,2942.0,9.618]
[1766499818791,0.00509875,2942.8,2941.9,0.00509875]
[1766499818993,0.00509875,2942.8,2942.0,9.617]
[1766499819194,0.00509875,2942.8,2942.1,9.617]
[1766499819392,0.00509875,2942.8,2941.9,0.00509875]
[1766499819695,0.00509875,2942.8,2942.0,6.218]
[1766499819898,0.00509875,2942.8,2942.0,9.617]
[1766499821994,0.00509875,2942.8,2941.9,0.00509875]
[1766499822201,0.00509875,2942.8,2942.0,9.617]
[1766499823393,0.00509875,2942.8,2941.9,0.00509875]
[1766499823593,3.40409875,2942.8,2941.9,0.00509875]
[1766499824501,3.57408875,2942.8,2941.9,0.00509875]
[1766499824902,0.17508875,2942.8,2941.9,0.00509875]
[1766499825093,3.399,2942.7,2941.9,0.00509875]
[1766499828204,3.399,2942.7,2941.9,3.40409875]
[1766499829913,0.17508875,2942.8,2941.9,3.40409875]
[1766499830111,3.57408875,2942.8,2941.9,3.40409875]
[1766499831110,3.57408875,2942.8,2941.9,0.00509875]
[1766499831417,3.57408875,2942.8,2942.0,3.399]
[1766499833307,3.40409875,2942.8,2942.0,3.399]
[1766499837411,0.17339833,2943.3,2942.0,3.399]
[1766499837618,3.57239833,2943.3,2942.0,3.399]
[1766499838210,3.57239833,2943.3,2941.9,0.00509875]
[1766499838410,3.40243833,2943.3,2941.9,0.00509875]
[1766499838718,3.40243833,2943.3,2941.9,3.40409875]
[1766499839510,0.16997,2943.1,2941.9,3.40409875]
[1766499839717,6.979,2943.0,2941.9,3.40409875]
[1766499848322,7.14897,2943.0,2941.9,3.40409875]
[1766499848526,7.14897,2943.0,2941.9,0.00509875]
[1766499848716,7.14897,2943.0,2941.9,3.40409875]
[1766499848917,40.8,2942.9,2941.9,3.40409875]
[1766499849117,7.14897,2943.0,2941.9,3.40409875]
[1766499849925,7.14897,2943.0,2941.9,4.58378025]
[1766499850718,3.399,2943.1,2942.5,1.1796815]
[1766499850918,0.00343833,2943.3,2942.5,1.1796815]
[1766499851120,3.399,2943.2,2942.5,1.1796815]
[1766499852124,3.399,2943.2,2942.8,1.1796815]
[1766499852425,3.399,2943.6,2943.1,1.1796815]
[1766499852727,3.399,2943.6,2942.9,3.399]
[1766499853225,3.4021771,2943.6,2942.9,3.399]
[1766499853928,3.4021771,2943.6,2943.0,1.17899407]
[1766499854823,2.2875771,2943.6,2943.0,1.17899407]
[1766499855026,3.399,2943.9,2943.2,1.17899407]
[1766499855422,0.16992,2944.0,2943.2,4.57799407]
[1766499856032,0.17430046,2944.0,2943.2,4.57799407]
[1766499857519,0.17430046,2944.0,2943.2,1.17899407]
[1766499858930,0.17430046,2944.0,2943.4,1.17899407]
[1766499859233,0.16988,2944.7,2943.9,1.17899407]
[1766499859429,3.399,2944.6,2944.1,1.17899407]
[1766499859727,3.399,2944.6,2943.9,1.17899407]
[1766499860232,3.40190985,2944.6,2943.9,1.1821783]
[1766499860433,0.16989,2944.5,2943.7,2.2834]
[1766499860625,0.16989,2944.5,2943.6,1.17899407]
[1766499861233,0.16989,2944.5,2943.5,1.17899407]
[1766499861433,0.16989,2944.5,2943.5,1.18277883]
[1766499861634,0.16989,2944.5,2943.7,1.17899407]
[1766499862132,0.16989,2944.5,2943.9,1.17899407]
[1766499862429,3.398,2944.4,2944.1,1.17899407]
[1766499862635,0.16989,2944.5,2943.7,1.17899407]
[1766499863834,3.398,2944.4,2943.7,1.17899407]
[1766499864635,3.398,2944.4,2943.5,4.58077883]
[1766499864835,9.498,2944.4,2943.5,1.18277883]
[1766499865035,9.498,2944.4,2943.5,4.58077883]
[1766499866538,9.6679,2944.4,2943.5,0.00378476]
[1766499866725,0.16991,2944.2,2943.5,0.00378476]
[1766499866930,0.16991,2944.2,2943.4,0.00509875]
[1766499866931,3.398,2944.1,2943.4,0.00509875]
[1766499867932,3.398,2944.1,2943.4,0.00850182]
[1766499868340,3.398,2944.1,2943.1,1.17899407]
[1766499868535,1.17899407,2944.0,2943.1,1.17899407]
[1766499868839,6.099,2943.9,2943.1,1.17899407]
[1766499869038,3.398,2943.8,2942.9,3.398]
[1766499869238,3.398,2943.8,2942.9,4.57699407]
[1766499869440,0.00509875,2943.6,2943.1,0.00509875]
[1766499869640,3.398,2943.5,2943.1,0.00509875]
[1766499870135,3.398,2943.5,2942.9,4.57971123]
[1766499870136,3.398,2943.5,2942.9,0.00271716]
[1766499870642,5.733,2943.4,2942.5,1.17899407]
[1766499871233,5.733,2943.4,2942.7,0.00509875]
[1766499871435,7.08194407,2943.4,2942.7,0.00509875]
[1766499871632,1.17899407,2943.2,2942.1,1.17899407]
[1766499871943,1.17899407,2943.2,2942.0,3.398]
[1766499871944,3.398,2943.1,2942.3,1.17899407]
[1766499872642,3.398,2943.1,2942.4,0.00509875]
[1766499872842,3.398,2943.1,2942.7,1.17899407]
[1766499873036,6.099,2943.2,2942.7,1.17899407]
[1766499873238,3.398,2943.1,2942.7,1.17899407]
[1766499874829,3.398,2943.1,2942.4,0.00509875]
[1766499874830,3.398,2943.1,2942.5,1.17899407]
[1766499875745,3.398,2943.1,2942.4,0.00509875]
[1766499875746,0.16996,2943.3,2942.7,1.17899407]
[1766499875948,4.791,2943.2,2942.7,1.17899407]
[1766499878348,3.398,2943.2,2942.7,1.17899407]
[1766499882540,3.56896,2943.3,2942.9,1.17899407]
[1766499882739,3.56896,2943.3,2942.7,1.17899407]
[1766499883452,3.56896,2943.3,2942.9,1.17899407]
[1766499887050,3.56896,2943.3,2942.6,3.399]
[1766499887252,7.66630076,2945.5,2943.2,1.17899407]
[1766499887449,0.16993,2943.7,2942.6,3.399]
[1766499887650,9.497,2943.6,2942.7,1.17899407]
[1766499887851,9.497,2943.6,2942.6,3.399]
[1766499888045,9.497,2943.6,2942.8,1.17899407]
[1766499888250,0.00509875,2943.5,2943.0,1.17899407]
[1766499888747,0.00509875,2943.5,2943.2,1.17899407]
[1766499890645,0.16993,2943.7,2943.2,1.17899407]
[1766499890844,3.399,2943.7,2943.4,1.17899407]
[1766499891247,3.399,2944.1,2943.4,1.17899407]
[1766499891447,3.399,2944.1,2943.6,1.17899407]
[1766499891644,3.40409875,2944.1,2943.6,1.17899407]
[1766499892548,3.40409875,2944.1,2943.4,1.17899407]
[1766499892753,3.40409875,2944.1,2943.6,1.17899407]
[1766499894456,0.00509875,2944.1,2943.6,1.17899407]
[1766499894752,3.40309875,2944.1,2943.6,1.17899407]
[1766499895651,0.00509875,2944.1,2943.6,1.17899407]
[1766499900061,0.00509875,2944.1,2943.3,1.17899407]
[1766499900264,0.00509875,2944.1,2943.5,1.17899407]
[1766499900458,0.00509875,2944.1,2943.3,3.398]
[1766499900661,0.00509875,2944.1,2943.4,1.17899407]
[1766499901362,40.80290985,2944.6,2944.0,1.17899407]
[1766499901363,0.00290985,2944.6,2944.0,1.17899407]